[Event "Live Chess"]
[Site "Chess.com"]
[Date "2024.06.01"]
[Round "-"]
[White "TigerTank70"]
[Black "Nazar-Makarchuk"]
[Result "1-0"]
[WhiteElo "2198"]
[BlackElo "1548"]
[TimeControl "300"]
[EndTime "10:54:12 PDT"]
[Termination "TigerTank70 won by resignation"]

1. e4 {[%clk 0:04:58.8]} 1... d5 {[%clk 0:04:58.6]} 2. exd5 {[%clk 0:04:57.7]}
2... Nf6 {[%clk 0:04:57.6]} 3. d4 {[%clk 0:04:57.6]} 3... Qxd5 {[%clk
0:04:56.6]} 4. Nf3 {[%clk 0:04:55.9]} 4... Nc6 {[%clk 0:04:55.4]} 5. c4 {[%clk
0:04:54.2]} 5... Qe4+ {[%clk 0:04:52.1]} 6. Be2 {[%clk 0:04:53.1]} 6... Bg4
{[%clk 0:04:50]} 7. Nc3 {[%clk 0:04:51.9]} 7... Qf5 {[%clk 0:04:44.9]} 8. h3
{[%clk 0:04:48.5]} 8... Bxf3 {[%clk 0:04:43.6]} 9. Bxf3 {[%clk 0:04:47.7]} 9...
O-O-O {[%clk 0:04:42.5]} 10. Bxc6 {[%clk 0:04:45.7]} 10... Qe6+ {[%clk
0:04:37.6]} 11. Be3 {[%clk 0:04:39]} 11... Qxc6 {[%clk 0:04:35.8]} 12. O-O
{[%clk 0:04:38.5]} 12... Ne4 {[%clk 0:04:33.3]} 13. Nxe4 {[%clk 0:04:33.9]}
13... Qxe4 {[%clk 0:04:32.4]} 14. Qa4 {[%clk 0:04:32.8]} 14... a6 {[%clk
0:04:30.7]} 15. b4 {[%clk 0:04:26.7]} 15... Qd3 {[%clk 0:04:26.4]} 16. b5 {[%clk
0:04:24.9]} 16... axb5 {[%clk 0:04:22.5]} 17. cxb5 {[%clk 0:04:20.7]} 17... e6
{[%clk 0:04:15.5]} 18. Qa8+ {[%clk 0:04:19]} 18... Kd7 {[%clk 0:04:14.1]} 19.
Qxb7 {[%clk 0:04:18.4]} 19... Bd6 {[%clk 0:04:10.6]} 20. Rac1 {[%clk 0:04:04.5]}
20... Rb8 {[%clk 0:04:08.4]} 21. Qc6+ {[%clk 0:04:00]} 21... Ke7 {[%clk
0:04:06.8]} 22. a4 {[%clk 0:03:56.6]} 22... Qa3 {[%clk 0:04:00]} 23. Ra1 {[%clk
0:03:52.2]} 23... Qb3 {[%clk 0:03:47.1]} 24. Rfb1 {[%clk 0:03:47.5]} 24... Qd3
{[%clk 0:03:39]} 25. Qf3 {[%clk 0:03:45.9]} 25... f6 {[%clk 0:03:32.1]} 26. Qg4
{[%clk 0:03:22.6]} 26... Qg6 {[%clk 0:03:28.1]} 27. Qxg6 {[%clk 0:03:19]} 27...
hxg6 {[%clk 0:03:27.3]} 28. a5 {[%clk 0:03:16.5]} 28... e5 {[%clk 0:03:20.8]}
29. d5 {[%clk 0:03:13.6]} 29... f5 {[%clk 0:03:16.2]} 30. f3 {[%clk 0:03:08.3]}
30... Rb7 {[%clk 0:03:13.4]} 31. a6 {[%clk 0:03:06.2]} 31... Rbb8 {[%clk
0:03:11.2]} 32. a7 {[%clk 0:03:03.7]} 32... Ra8 {[%clk 0:03:09.6]} 33. b6 {[%clk
0:03:01.1]} 33... cxb6 {[%clk 0:03:07.4]} 34. Rxb6 {[%clk 0:03:00.4]} 34... Rhc8
{[%clk 0:03:02]} 35. Rb7+ {[%clk 0:02:57.7]} 35... Rc7 {[%clk 0:03:00.9]} 36.
Rxc7+ {[%clk 0:02:44]} 36... Bxc7 {[%clk 0:03:00]} 37. Ra6 {[%clk 0:02:43.2]}
37... Kf7 {[%clk 0:02:49.4]} 38. d6 {[%clk 0:02:38.1]} 38... Bd8 {[%clk
0:02:38]} 39. Kf2 {[%clk 0:02:37.3]} 39... f4 {[%clk 0:02:33.9]} 40. Bc5 {[%clk
0:02:36.1]} 40... Ke6 {[%clk 0:02:19.9]} 41. Ke2 {[%clk 0:02:35.3]} 41... Kd5
{[%clk 0:02:18.5]} 42. Bf2 {[%clk 0:02:26.5]} 42... g5 {[%clk 0:02:07.2]} 43.
Kd3 {[%clk 0:02:21.6]} 43... Bf6 {[%clk 0:02:05.3]} 44. d7 {[%clk 0:02:18.8]}
44... Bd8 {[%clk 0:01:50.5]} 45. Be1 {[%clk 0:02:10.2]} 45... Kc5 {[%clk
0:01:45.4]} 46. Ke4 {[%clk 0:02:06.4]} 46... Kb5 {[%clk 0:01:42.5]} 47. Ra2
{[%clk 0:01:55.8]} 47... Kb6 {[%clk 0:01:38.4]} 48. Kxe5 {[%clk 0:01:52]} 48...
Kb7 {[%clk 0:01:35.9]} 49. Bf2 {[%clk 0:01:47.5]} 49... Kc7 {[%clk 0:01:30.9]}
50. Ke6 {[%clk 0:01:46.5]} 50... g6 {[%clk 0:01:27.8]} 51. Rc2+ {[%clk
0:01:43.4]} 51... Kb7 {[%clk 0:01:26.3]} 52. Rc8 {[%clk 0:01:38.3]} 52... Rxa7
{[%clk 0:01:08.1]} 53. Bxa7 {[%clk 0:01:33.4]} 53... Kxa7 {[%clk 0:01:07.6]} 54.
Rxd8 {[%clk 0:01:31.9]} 54... Kb7 {[%clk 0:01:07.1]} 55. Rg8 {[%clk 0:01:30.5]}
1-0

[Event "Live Chess"]
[Site "Chess.com"]
[Date "2024.06.01"]
[Round "-"]
[White "grillage"]
[Black "peteopeteo"]
[Result "1-0"]
[WhiteElo "1898"]
[BlackElo "1617"]
[TimeControl "300"]
[EndTime "10:54:19 PDT"]
[Termination "grillage won by checkmate"]

1. d4 {[%clk 0:04:57.4]} 1... d5 {[%clk 0:04:59]} 2. Nf3 {[%clk 0:04:55.3]} 2...
Bf5 {[%clk 0:04:58.1]} 3. c4 {[%clk 0:04:51.4]} 3... c6 {[%clk 0:04:56.6]} 4.
Nc3 {[%clk 0:04:42]} 4... e6 {[%clk 0:04:55.3]} 5. cxd5 {[%clk 0:04:22.5]} 5...
cxd5 {[%clk 0:04:51.9]} 6. Bf4 {[%clk 0:04:20.7]} 6... a6 {[%clk 0:04:45.6]} 7.
e3 {[%clk 0:04:18.1]} 7... Bb4 {[%clk 0:04:43.9]} 8. Bd3 {[%clk 0:04:16.3]} 8...
Bxd3 {[%clk 0:04:30.5]} 9. Qxd3 {[%clk 0:04:14.8]} 9... Nf6 {[%clk 0:04:27.3]}
10. O-O {[%clk 0:04:13.4]} 10... O-O {[%clk 0:04:23.3]} 11. a3 {[%clk
0:04:11.8]} 11... Bxc3 {[%clk 0:04:21.5]} 12. Qxc3 {[%clk 0:04:10]} 12... Nc6
{[%clk 0:04:19.9]} 13. b4 {[%clk 0:04:08]} 13... Rc8 {[%clk 0:04:17.7]} 14. Qd3
{[%clk 0:04:04.2]} 14... Ne4 {[%clk 0:04:03.6]} 15. Rac1 {[%clk 0:04:00.2]}
15... Ne7 {[%clk 0:04:02.1]} 16. Ne5 {[%clk 0:03:52.4]} 16... Nc6 {[%clk
0:03:55.3]} 17. Nxc6 {[%clk 0:03:49.8]} 17... Rxc6 {[%clk 0:03:53.2]} 18. Rxc6
{[%clk 0:03:48.5]} 18... bxc6 {[%clk 0:03:53.1]} 19. Rc1 {[%clk 0:03:46.8]}
19... Qb6 {[%clk 0:03:48.4]} 20. h3 {[%clk 0:03:41]} 20... Rc8 {[%clk 0:03:41]}
21. f3 {[%clk 0:03:27.1]} 21... Nf6 {[%clk 0:03:40.1]} 22. Bd6 {[%clk 0:03:22]}
22... Qb5 {[%clk 0:03:32.5]} 23. Qxb5 {[%clk 0:03:15.4]} 23... axb5 {[%clk
0:03:32.4]} 24. g4 {[%clk 0:03:04.8]} 24... Ne8 {[%clk 0:03:31.5]} 25. Bc5
{[%clk 0:02:50.2]} 25... Rd8 {[%clk 0:03:20.5]} 26. Kf2 {[%clk 0:02:46.1]} 26...
Nd6 {[%clk 0:03:19.3]} 27. Bxd6 {[%clk 0:02:38.6]} 27... Rxd6 {[%clk 0:03:18.5]}
28. Kg3 {[%clk 0:02:35.6]} 28... f6 {[%clk 0:03:13.7]} 29. Kf4 {[%clk
0:02:29.9]} 29... g5+ {[%clk 0:03:10.4]} 30. Kg3 {[%clk 0:02:27.6]} 30... Kf7
{[%clk 0:03:05.3]} 31. h4 {[%clk 0:02:26.6]} 31... h6 {[%clk 0:03:04.1]} 32.
hxg5 {[%clk 0:02:25.5]} 32... hxg5 {[%clk 0:03:04]} 33. Rh1 {[%clk 0:02:18.1]}
33... Kg6 {[%clk 0:03:02.4]} 34. Rh8 {[%clk 0:02:16.3]} 34... Rd7 {[%clk
0:02:56.2]} 35. Ra8 {[%clk 0:02:14.2]} 35... Kf7 {[%clk 0:02:49.1]} 36. Ra6
{[%clk 0:02:12.8]} 36... Rc7 {[%clk 0:02:46.9]} 37. f4 {[%clk 0:02:08.8]} 37...
gxf4+ {[%clk 0:02:44.9]} 38. exf4 {[%clk 0:02:07.7]} 38... Ke7 {[%clk 0:02:39]}
39. Kh4 {[%clk 0:02:06.4]} 39... Kf7 {[%clk 0:02:37.8]} 40. g5 {[%clk 0:02:05]}
40... Kg6 {[%clk 0:02:33.8]} 41. Kg4 {[%clk 0:01:59.4]} 41... Rc8 {[%clk
0:02:25.1]} 42. Ra7 {[%clk 0:01:49.3]} 42... e5 {[%clk 0:01:59.3]} 43. f5#
{[%clk 0:01:38]} 1-0

[Event "Live Chess"]
[Site "Chess.com"]
[Date "2024.06.01"]
[Round "-"]
[White "SirGerhard"]
[Black "Duke_of_Bebington"]
[Result "1-0"]
[WhiteElo "2771"]
[BlackElo "1628"]
[TimeControl "300"]
[EndTime "10:54:24 PDT"]
[Termination "SirGerhard won by resignation"]

1. d4 {[%clk 0:04:58.7]} 1... d5 {[%clk 0:04:58.1]} 2. c4 {[%clk 0:04:57.8]}
2... c6 {[%clk 0:04:57.2]} 3. Nf3 {[%clk 0:04:57.2]} 3... Nf6 {[%clk 0:04:55.2]}
4. Nc3 {[%clk 0:04:56.7]} 4... dxc4 {[%clk 0:04:53.9]} 5. e4 {[%clk 0:04:54.7]}
5... b5 {[%clk 0:04:51.2]} 6. e5 {[%clk 0:04:53.5]} 6... Nd5 {[%clk 0:04:50.2]}
7. a4 {[%clk 0:04:52.8]} 7... a6 {[%clk 0:04:48.9]} 8. axb5 {[%clk 0:04:42.4]}
8... Nxc3 {[%clk 0:04:47.9]} 9. bxc3 {[%clk 0:04:41.5]} 9... cxb5 {[%clk
0:04:47.5]} 10. Ng5 {[%clk 0:04:40.9]} 10... h6 {[%clk 0:04:37.6]} 11. Nxf7
{[%clk 0:04:40]} 11... Kxf7 {[%clk 0:04:36.5]} 12. Qf3+ {[%clk 0:04:39.1]} 12...
Kg8 {[%clk 0:04:34.7]} 13. Qxa8 {[%clk 0:04:38.2]} 13... Nd7 {[%clk 0:04:28.9]}
14. Qd5+ {[%clk 0:04:36.5]} 14... Kh7 {[%clk 0:04:26.8]} 15. e6 {[%clk
0:04:35.9]} 15... Nf6 {[%clk 0:04:25.6]} 16. Qxd8 {[%clk 0:04:34.7]} 1-0

[Event "Live Chess"]
[Site "Chess.com"]
[Date "2024.06.01"]
[Round "-"]
[White "road2gm5000"]
[Black "resipsa6"]
[Result "0-1"]
[WhiteElo "1078"]
[BlackElo "2036"]
[TimeControl "300"]
[EndTime "10:54:34 PDT"]
[Termination "resipsa6 won by resignation"]

1. e4 {[%clk 0:04:58.1]} 1... c5 {[%clk 0:04:58.2]} 2. Nf3 {[%clk 0:04:55.8]}
2... d6 {[%clk 0:04:57.5]} 3. Bb5+ {[%clk 0:04:55.3]} 3... Bd7 {[%clk
0:04:56.5]} 4. Bxd7+ {[%clk 0:04:54.3]} 4... Nxd7 {[%clk 0:04:56.2]} 5. d4
{[%clk 0:04:53.3]} 5... cxd4 {[%clk 0:04:54.7]} 6. Nxd4 {[%clk 0:04:53.2]} 6...
Ngf6 {[%clk 0:04:54.2]} 7. Nc3 {[%clk 0:04:51.9]} 7... e5 {[%clk 0:04:53.7]} 8.
Nde2 {[%clk 0:04:47.1]} 8... a6 {[%clk 0:04:53]} 9. f3 {[%clk 0:04:46.4]} 9...
Nc5 {[%clk 0:04:51.7]} 10. Bg5 {[%clk 0:04:45.4]} 10... Be7 {[%clk 0:04:50.9]}
11. Bxf6 {[%clk 0:04:41.7]} 11... Bxf6 {[%clk 0:04:50.2]} 12. Nd5 {[%clk
0:04:41]} 12... O-O {[%clk 0:04:48.1]} 13. O-O {[%clk 0:04:37.2]} 13... Rc8
{[%clk 0:04:45.3]} 14. Nec3 {[%clk 0:04:36.4]} 14... b5 {[%clk 0:04:40.5]} 15.
a3 {[%clk 0:04:34.4]} 15... Be7 {[%clk 0:04:35]} 16. Nxe7+ {[%clk 0:04:24.7]}
16... Qxe7 {[%clk 0:04:34.1]} 0-1

[Event "Live Chess"]
[Site "Chess.com"]
[Date "2024.06.01"]
[Round "-"]
[White "koekoekoe"]
[Black "febray_27"]
[Result "1-0"]
[WhiteElo "2103"]
[BlackElo "2003"]
[TimeControl "300"]
[EndTime "10:54:41 PDT"]
[Termination "koekoekoe won by resignation"]

1. d4 {[%clk 0:04:59.5]} 1... Nf6 {[%clk 0:04:56.5]} 2. Bf4 {[%clk 0:04:59]}
2... g6 {[%clk 0:04:55.6]} 3. e3 {[%clk 0:04:58.6]} 3... Bg7 {[%clk 0:04:55.1]}
4. Nf3 {[%clk 0:04:58.1]} 4... O-O {[%clk 0:04:54.7]} 5. Bc4 {[%clk 0:04:57.4]}
5... d5 {[%clk 0:04:53.7]} 6. Bb3 {[%clk 0:04:56.4]} 6... Nbd7 {[%clk
0:04:52.3]} 7. O-O {[%clk 0:04:55.9]} 7... c5 {[%clk 0:04:51.8]} 8. c3 {[%clk
0:04:55.1]} 8... c4 {[%clk 0:04:50.6]} 9. Bc2 {[%clk 0:04:54]} 9... Re8 {[%clk
0:04:48.9]} 10. Nbd2 {[%clk 0:04:53.5]} 10... b6 {[%clk 0:04:48.2]} 11. Ne5
{[%clk 0:04:46.7]} 11... Nh5 {[%clk 0:04:45.8]} 12. Nc6 {[%clk 0:04:36.4]} 12...
Nxf4 {[%clk 0:04:42.8]} 13. Nxd8 {[%clk 0:04:34.5]} 13... Rxd8 {[%clk
0:04:42.7]} 14. exf4 {[%clk 0:04:33.1]} 14... Nf6 {[%clk 0:04:41.1]} 15. Re1
{[%clk 0:04:30.2]} 15... e6 {[%clk 0:04:38.8]} 16. Nf3 {[%clk 0:04:28.3]} 16...
b5 {[%clk 0:04:37.4]} 17. Ne5 {[%clk 0:04:27.4]} 17... Bb7 {[%clk 0:04:36.8]}
18. a3 {[%clk 0:04:18.4]} 18... a5 {[%clk 0:04:36.2]} 19. b3 {[%clk 0:04:03.2]}
19... Nh5 {[%clk 0:04:31.1]} 20. g3 {[%clk 0:04:00.7]} 20... f6 {[%clk
0:04:16.6]} 21. Nf3 {[%clk 0:03:54.9]} 21... Kf7 {[%clk 0:04:15.5]} 22. bxc4
{[%clk 0:03:51.6]} 22... dxc4 {[%clk 0:04:14.1]} 23. Rb1 {[%clk 0:03:47.6]}
23... Bc6 {[%clk 0:04:11.3]} 24. Be4 {[%clk 0:03:46.3]} 24... Bxe4 {[%clk
0:04:06]} 25. Rxe4 {[%clk 0:03:46.2]} 25... Rab8 {[%clk 0:04:05.7]} 26. Qe1
{[%clk 0:03:39.3]} 26... Bf8 {[%clk 0:04:03.7]} 27. Rxe6 {[%clk 0:03:32.1]} 1-0

[Event "Live Chess"]
[Site "Chess.com"]
[Date "2024.06.01"]
[Round "-"]
[White "PatientChessPapa"]
[Black "bill77678"]
[Result "0-1"]
[WhiteElo "784"]
[BlackElo "1837"]
[TimeControl "300"]
[EndTime "10:54:51 PDT"]
[Termination "bill77678 won by resignation"]

1. e4 {[%clk 0:04:56.4]} 1... c6 {[%clk 0:04:58.9]} 2. d4 {[%clk 0:04:54.6]}
2... d5 {[%clk 0:04:58.1]} 3. exd5 {[%clk 0:04:53.4]} 3... cxd5 {[%clk 0:04:58]}
4. c4 {[%clk 0:04:52.1]} 4... Nf6 {[%clk 0:04:56.8]} 5. Nc3 {[%clk 0:04:48.2]}
5... Nc6 {[%clk 0:04:55.3]} 6. Nf3 {[%clk 0:04:46.6]} 6... a6 {[%clk 0:04:54.2]}
7. Bg5 {[%clk 0:04:35.1]} 7... Bg4 {[%clk 0:04:30.2]} 8. Bxf6 {[%clk 0:04:22.3]}
8... exf6 {[%clk 0:04:28.7]} 9. cxd5 {[%clk 0:04:21]} 9... Nb4 {[%clk
0:04:15.1]} 10. h3 {[%clk 0:03:53.3]} 10... Bxf3 {[%clk 0:04:07.9]} 11. Qxf3
{[%clk 0:03:51.9]} 11... Nc2+ {[%clk 0:04:06.5]} 12. Kd1 {[%clk 0:03:44.1]}
12... Nxa1 {[%clk 0:04:04.9]} 13. Bd3 {[%clk 0:03:22.7]} 13... Be7 {[%clk
0:03:51.7]} 14. Re1 {[%clk 0:03:15.1]} 14... O-O {[%clk 0:03:50]} 15. Qe4 {[%clk
0:02:38.1]} 15... g6 {[%clk 0:03:41.6]} 16. Qxe7 {[%clk 0:02:36.5]} 16... Qb6
{[%clk 0:03:35.2]} 17. Kc1 {[%clk 0:02:32.6]} 17... Qxd4 {[%clk 0:03:25.3]} 18.
Qe3 {[%clk 0:02:13]} 18... Qb4 {[%clk 0:03:11.3]} 19. Qd2 {[%clk 0:01:39]} 19...
Rac8 {[%clk 0:03:06.6]} 20. Re7 {[%clk 0:00:39.2]} 20... Qxe7 {[%clk 0:03:02.4]}
0-1

[Event "Live Chess"]
[Site "Chess.com"]
[Date "2024.06.01"]
[Round "-"]
[White "DoctorMantisTobogganMD"]
[Black "Ferrarifan27"]
[Result "1-0"]
[WhiteElo "2195"]
[BlackElo "2089"]
[TimeControl "300"]
[EndTime "10:54:58 PDT"]
[Termination "DoctorMantisTobogganMD won by resignation"]

1. e4 {[%clk 0:04:59.1]} 1... e5 {[%clk 0:04:56.5]} 2. Nc3 {[%clk 0:04:58.2]}
2... Nf6 {[%clk 0:04:50.6]} 3. Bc4 {[%clk 0:04:57]} 3... Nc6 {[%clk 0:04:48.4]}
4. d3 {[%clk 0:04:56.3]} 4... Bb4 {[%clk 0:04:46.3]} 5. Ne2 {[%clk 0:04:55.2]}
5... O-O {[%clk 0:04:44.6]} 6. O-O {[%clk 0:04:54.3]} 6... d6 {[%clk 0:04:43.7]}
7. f4 {[%clk 0:04:53.5]} 7... Bg4 {[%clk 0:04:40]} 8. h3 {[%clk 0:04:51.6]} 8...
Bxc3 {[%clk 0:04:37.5]} 9. hxg4 {[%clk 0:04:44.9]} 9... Ba5 {[%clk 0:04:29.8]}
10. g5 {[%clk 0:04:41]} 10... Ng4 {[%clk 0:04:28.4]} 11. f5 {[%clk 0:04:22.6]}
11... Bb6+ {[%clk 0:04:26.3]} 12. Kh1 {[%clk 0:04:22.2]} 12... Nf2+ {[%clk
0:04:24.1]} 13. Rxf2 {[%clk 0:04:21.7]} 13... Bxf2 {[%clk 0:04:23.2]} 14. Qf1
{[%clk 0:04:21.1]} 14... Bb6 {[%clk 0:04:21.3]} 15. f6 {[%clk 0:04:13.7]} 15...
g6 {[%clk 0:04:20.2]} 16. g4 {[%clk 0:04:00.8]} 16... Qd7 {[%clk 0:04:16]} 17.
Qh3 {[%clk 0:03:58.9]} 17... Kh8 {[%clk 0:04:14.9]} 18. Kg2 {[%clk 0:03:49.6]}
18... Nb4 {[%clk 0:04:05]} 19. Bd2 {[%clk 0:03:46.6]} 19... h5 {[%clk 0:03:49]}
20. Bxb4 {[%clk 0:03:35]} 20... Qxg4+ {[%clk 0:03:41.4]} 21. Qxg4 {[%clk
0:03:33.7]} 21... hxg4 {[%clk 0:03:41.3]} 22. Rh1+ {[%clk 0:03:28]} 22... Kg8
{[%clk 0:03:40.2]} 23. Rh6 {[%clk 0:03:27.6]} 23... c6 {[%clk 0:03:29.1]} 24.
Rxg6+ {[%clk 0:03:24.5]} 24... Kh7 {[%clk 0:03:28.3]} 25. Rg7+ {[%clk
0:03:23.5]} 25... Kh8 {[%clk 0:03:27.4]} 26. Bxd6 {[%clk 0:03:16.8]} 26... Rad8
{[%clk 0:03:22.6]} 27. Bxf8 {[%clk 0:03:15.1]} 1-0

[Event "Live Chess"]
[Site "Chess.com"]
[Date "2024.06.01"]
[Round "-"]
[White "MagnersCarlsberg2870"]
[Black "Sacbutt"]
[Result "1-0"]
[WhiteElo "1908"]
[BlackElo "2361"]
[TimeControl "300"]
[EndTime "10:55:02 PDT"]
[Termination "MagnersCarlsberg2870 won by resignation"]

1. Nf3 {[%clk 0:04:57]} 1... e6 {[%clk 0:04:58.6]} 2. g3 {[%clk 0:04:55.1]} 2...
d5 {[%clk 0:04:57.8]} 3. d3 {[%clk 0:04:53.9]} 3... Nf6 {[%clk 0:04:55.5]} 4.
Nbd2 {[%clk 0:04:52.9]} 4... Be7 {[%clk 0:04:54.1]} 5. Bg2 {[%clk 0:04:52]} 5...
O-O {[%clk 0:04:53.7]} 6. O-O {[%clk 0:04:51.1]} 6... c5 {[%clk 0:04:53.3]} 7.
e4 {[%clk 0:04:50]} 7... Nc6 {[%clk 0:04:52.7]} 8. Re1 {[%clk 0:04:49]} 8... b5
{[%clk 0:04:51.8]} 9. Nf1 {[%clk 0:04:47.1]} 9... Qc7 {[%clk 0:04:50.2]} 10. e5
{[%clk 0:04:45.1]} 10... Nd7 {[%clk 0:04:49.1]} 11. Bf4 {[%clk 0:04:44.1]} 11...
a5 {[%clk 0:04:48.2]} 12. h4 {[%clk 0:04:43.1]} 12... Bb7 {[%clk 0:04:47]} 13.
Ng5 {[%clk 0:04:36.1]} 13... h6 {[%clk 0:04:31.5]} 14. Nh3 {[%clk 0:04:29.4]}
14... Ncxe5 {[%clk 0:04:20.3]} 15. Qh5 {[%clk 0:04:16.3]} 15... Bd6 {[%clk
0:04:14.4]} 16. Bxh6 {[%clk 0:04:11.1]} 16... gxh6 {[%clk 0:03:58.3]} 17. Qxh6
{[%clk 0:04:09.7]} 17... f6 {[%clk 0:03:57.1]} 18. f4 {[%clk 0:03:56.4]} 18...
Nf7 {[%clk 0:03:43.1]} 19. Qg6+ {[%clk 0:03:53.6]} 19... Kh8 {[%clk 0:03:42.2]}
20. Qh5+ {[%clk 0:03:50.2]} 20... Kg7 {[%clk 0:03:41.1]} 21. Qg4+ {[%clk
0:03:42.6]} 21... Kh7 {[%clk 0:03:34.4]} 22. Qh5+ {[%clk 0:03:41.6]} 22... Kg7
{[%clk 0:02:59.5]} 23. Qg4+ {[%clk 0:03:40.4]} 23... Kh6 {[%clk 0:02:56.9]} 24.
Rxe6 {[%clk 0:03:35.6]} 24... Rg8 {[%clk 0:02:47.8]} 25. Ng5 {[%clk 0:03:28.2]}
25... Nxg5 {[%clk 0:02:35.1]} 26. hxg5+ {[%clk 0:03:24.9]} 26... Kg7 {[%clk
0:02:28.7]} 27. gxf6+ {[%clk 0:03:20.7]} 27... Kf7 {[%clk 0:02:26.8]} 28. Qf5
{[%clk 0:03:07]} 28... Rg6 {[%clk 0:02:17.2]} 29. Rae1 {[%clk 0:03:02.1]} 29...
Rag8 {[%clk 0:01:56.4]} 30. Re7+ {[%clk 0:03:00.4]} 30... Bxe7 {[%clk
0:01:39.5]} 31. Rxe7+ {[%clk 0:02:58.5]} 31... Kf8 {[%clk 0:01:37.9]} 32. Rxd7
{[%clk 0:02:53.3]} 32... Bc8 {[%clk 0:01:30.5]} 33. Bxd5 {[%clk 0:02:13.6]}
33... Bxd7 {[%clk 0:01:05.6]} 34. Qe4 {[%clk 0:02:09.9]} 34... Rxg3+ {[%clk
0:00:38.9]} 35. Nxg3 {[%clk 0:02:08.2]} 35... Rxg3+ {[%clk 0:00:38.5]} 36. Kf2
{[%clk 0:02:02.9]} 36... Rg7 {[%clk 0:00:20]} 37. fxg7+ {[%clk 0:01:56.5]} 37...
Kxg7 {[%clk 0:00:19.9]} 38. Qe5+ {[%clk 0:01:51.4]} 38... Qxe5 {[%clk
0:00:18.9]} 39. fxe5 {[%clk 0:01:50.6]} 39... Kg6 {[%clk 0:00:17.9]} 40. Ke3
{[%clk 0:01:49.7]} 40... Kf5 {[%clk 0:00:17.5]} 41. e6 {[%clk 0:01:45.5]} 41...
Be8 {[%clk 0:00:15.7]} 42. c3 {[%clk 0:01:39.8]} 42... Ke5 {[%clk 0:00:15.2]}
43. c4 {[%clk 0:01:36.9]} 43... bxc4 {[%clk 0:00:12.8]} 44. Bxc4 {[%clk
0:01:34.6]} 44... Bc6 {[%clk 0:00:11.1]} 45. a3 {[%clk 0:01:31.7]} 45... Be8
{[%clk 0:00:10.3]} 46. Bb3 {[%clk 0:01:28.2]} 46... Bc6 {[%clk 0:00:09.7]} 47.
Bc4 {[%clk 0:01:27.3]} 47... Be8 {[%clk 0:00:09.1]} 48. b3 {[%clk 0:01:25]}
48... Bc6 {[%clk 0:00:08.6]} 49. a4 {[%clk 0:01:23.1]} 49... Be8 {[%clk
0:00:07.7]} 50. Kf3 {[%clk 0:01:20.7]} 50... Bc6+ {[%clk 0:00:06.6]} 51. Kg4
{[%clk 0:01:19.6]} 51... Be8 {[%clk 0:00:05.8]} 52. Kg5 {[%clk 0:01:17.8]} 52...
Kd4 {[%clk 0:00:04.9]} 53. Kf6 {[%clk 0:01:15.9]} 53... Kc3 {[%clk 0:00:04]} 54.
e7 {[%clk 0:01:14.5]} 1-0

[Event "Live Chess"]
[Site "Chess.com"]
[Date "2024.06.01"]
[Round "-"]
[White "Frankie_Badacsonyi"]
[Black "SavagePawn7"]
[Result "1-0"]
[WhiteElo "2437"]
[BlackElo "684"]
[TimeControl "300"]
[EndTime "10:55:15 PDT"]
[Termination "Frankie_Badacsonyi won by checkmate"]

1. Nf3 {[%clk 0:04:59.1]} 1... Nc6 {[%clk 0:04:55.2]} 2. e3 {[%clk 0:04:59]}
2... e6 {[%clk 0:04:51.9]} 3. d4 {[%clk 0:04:58.3]} 3... d5 {[%clk 0:04:49]} 4.
Bd3 {[%clk 0:04:56.5]} 4... Bb4+ {[%clk 0:04:42.5]} 5. Bd2 {[%clk 0:04:55.6]}
5... Bxd2+ {[%clk 0:04:40.6]} 6. Nbxd2 {[%clk 0:04:55.5]} 6... Nf6 {[%clk
0:04:37.2]} 7. O-O {[%clk 0:04:54.8]} 7... O-O {[%clk 0:04:35.4]} 8. c3 {[%clk
0:04:54.3]} 8... Re8 {[%clk 0:04:30.8]} 9. e4 {[%clk 0:04:50.3]} 9... e5 {[%clk
0:04:18.8]} 10. Re1 {[%clk 0:04:36]} 10... exd4 {[%clk 0:04:13.6]} 11. cxd4
{[%clk 0:04:34.8]} 11... dxe4 {[%clk 0:03:53]} 12. Nxe4 {[%clk 0:04:33.7]} 12...
Nxe4 {[%clk 0:03:47.6]} 13. Bxe4 {[%clk 0:04:33.6]} 13... Bg4 {[%clk 0:03:29.1]}
14. Bxc6 {[%clk 0:04:23.8]} 14... bxc6 {[%clk 0:03:26.4]} 15. Rxe8+ {[%clk
0:04:22.5]} 15... Qxe8 {[%clk 0:03:24.5]} 16. h3 {[%clk 0:04:21.7]} 16... Bxf3
{[%clk 0:03:16.7]} 17. Qxf3 {[%clk 0:04:21.6]} 17... Rd8 {[%clk 0:03:10.5]} 18.
Qe3 {[%clk 0:04:18.8]} 18... Qd7 {[%clk 0:03:01.4]} 19. Rc1 {[%clk 0:04:09.2]}
19... Qxd4 {[%clk 0:02:57.8]} 20. Qxd4 {[%clk 0:04:08]} 20... Rxd4 {[%clk
0:02:56.2]} 21. Rxc6 {[%clk 0:04:07.7]} 21... Rd2 {[%clk 0:02:54.1]} 22. Rxc7
{[%clk 0:04:06.5]} 22... Rxb2 {[%clk 0:02:48.2]} 23. Rc8# {[%clk 0:04:05.5]} 1-0